[Event "new tournament description"]
[Site ""]
[Date "2018.12.27"]
[Round "6.2"]
[White "BELLAHCENE"]
[Black "LERCH"]
[Result "1/2-1/2"]
[TimeControl "4min+2sec"]
[WhiteElo "2448"]
[BlackElo "2420"]

1. d4 {[%clk 00:04:03]} {[%emt 00:01:34]} Nf6 {[%clk 00:04:03]} 2. c4 {[%clk
00:04:04]} {[%emt 00:00:01]} e6 {[%clk 00:04:04]} {[%emt 00:00:01]} 3. Nf3
{[%clk 00:04:05]} b6 {[%clk 00:04:04]} {[%emt 00:00:03]} 4. g3 {[%clk
00:04:05]} {[%emt 00:00:01]} Ba6 {[%clk 00:04:04]} {[%emt 00:00:02]} 5. Qa4
{[%clk 00:04:00]} {[%emt 00:00:07]} c6 {[%clk 00:04:00]} {[%emt 00:00:06]} 6.
Nc3 {[%clk 00:03:52]} {[%emt 00:00:10]} Be7 {[%clk 00:03:55]} {[%emt 00:00:07]}
7. e4 {[%clk 00:03:50]} {[%emt 00:00:05]} O-O {[%clk 00:03:40]} {[%emt
00:00:17]} 8. e5 {[%clk 00:03:42]} {[%emt 00:00:10]} Ne8 {[%clk 00:03:24]}
{[%emt 00:00:18]} 9. Qc2 {[%clk 00:03:33]} {[%emt 00:00:10]} d5 {[%clk
00:03:14]} {[%emt 00:00:13]} 10. exd6 {[%clk 00:03:21]} {[%emt 00:00:14]} Nxd6
{[%clk 00:03:09]} {[%emt 00:00:07]} 11. b3 {[%clk 00:03:18]} {[%emt 00:00:06]}
Nf5 {[%clk 00:03:01]} {[%emt 00:00:09]} 12. Bb2 {[%clk 00:03:03]} {[%emt
00:00:17]} c5 {[%clk 00:02:40]} {[%emt 00:00:23]} 13. dxc5 {[%clk 00:02:04]}
{[%emt 00:01:01]} bxc5 {[%clk 00:02:34]} {[%emt 00:00:08]} 14. Bd3 {[%clk
00:01:56]} {[%emt 00:00:10]} Bb7 {[%clk 00:02:15]} {[%emt 00:00:21]} 15. Be4
{[%clk 00:01:41]} {[%emt 00:00:17]} Nc6 {[%clk 00:01:58]} {[%emt 00:00:19]} 16.
Qc1 {[%clk 00:01:42]} Qc8 {[%clk 00:01:49]} {[%emt 00:00:12]} 17. O-O {[%clk
00:01:38]} {[%emt 00:00:05]} Ncd4 {[%clk 00:01:49]} {[%emt 00:00:02]} 18. Nxd4
{[%clk 00:01:04]} {[%emt 00:00:36]} Nxd4 {[%clk 00:01:40]} {[%emt 00:00:11]} 19.
Re1 {[%clk 00:00:51]} {[%emt 00:00:15]} Bf6 {[%clk 00:01:17]} {[%emt 00:00:25]}
20. Qe3 {[%clk 00:00:43]} {[%emt 00:00:10]} Rd8 {[%clk 00:01:10]} {[%emt
00:00:09]} 21. Rad1 {[%clk 00:00:43]} {[%emt 00:00:02]} Bc6 {[%clk 00:00:57]}
{[%emt 00:00:15]} 22. Kf1 {[%clk 00:00:35]} {[%emt 00:00:10]} g6 {[%clk
00:00:41]} {[%emt 00:00:18]} 23. Rd2 {[%clk 00:00:31]} {[%emt 00:00:06]} Qb7
{[%clk 00:00:39]} {[%emt 00:00:04]} 24. Red1 {[%clk 00:00:30]} {[%emt
00:00:03]} Rd7 {[%emt 00:00:14]} 25. Bxc6 {[%clk 00:00:31]} {[%emt 00:00:01]}
Qxc6 {[%clk 00:00:28]} 26. Qe4 {[%clk 00:00:31]} {[%emt 00:00:01]} Rc8 {[%clk
00:00:06]} {[%emt 00:00:25]} 27. Qxc6 {[%clk 00:00:32]} {[%emt 00:00:01]} Rxc6
{[%clk 00:00:07]} 28. Ne4 {[%clk 00:00:33]} e5 {[%clk 00:00:08]} {[%emt
00:00:02]} 29. Nc3 {[%clk 00:00:27]} {[%emt 00:00:08]} Bg7 {[%clk 00:00:08]}
{[%emt 00:00:02]} 30. Nd5 {[%clk 00:00:26]} {[%emt 00:00:02]} Ra6 {[%clk
00:00:07]} {[%emt 00:00:03]} 31. Bxd4 {[%clk 00:00:18]} {[%emt 00:00:10]} exd4
{[%clk 00:00:08]} {[%emt 00:00:02]} 32. Re2 {[%clk 00:00:17]} {[%emt 00:00:03]}
Re6 {[%clk 00:00:08]} {[%emt 00:00:02]} 33. Nf4 {[%clk 00:00:17]} {[%emt
00:00:01]} Rxe2 {[%clk 00:00:09]} {[%emt 00:00:01]} 34. Kxe2 {[%clk 00:00:18]}
{[%emt 00:00:01]} Kf8 {[%clk 00:00:09]} {[%emt 00:00:03]} 35. Nd3 {[%clk
00:00:19]} Rc7 {[%clk 00:00:09]} {[%emt 00:00:02]} 36. Kf3 {[%clk 00:00:20]}
{[%emt 00:00:02]} Bf6 {[%clk 00:00:09]} {[%emt 00:00:02]} 37. Re1 {[%clk
00:00:21]} Be7 {[%clk 00:00:10]} 38. Re5 {[%clk 00:00:22]} {[%emt 00:00:02]}
Rc6 {[%clk 00:00:11]} {[%emt 00:00:01]} 39. Kg2 {[%clk 00:00:17]} {[%emt
00:00:07]} Bd6 {[%clk 00:00:12]} {[%emt 00:00:01]} 40. Rd5 {[%clk 00:00:18]}
Ke7 {[%clk 00:00:12]} {[%emt 00:00:02]} 41. a3 {[%clk 00:00:15]} {[%emt
00:00:05]} Ra6 {[%clk 00:00:07]} {[%emt 00:00:07]} 42. b4 {[%clk 00:00:17]}
Rxa3 {[%clk 00:00:06]} {[%emt 00:00:03]} 43. Nxc5 {[%clk 00:00:11]} {[%emt
00:00:07]} Bxc5 {[%clk 00:00:04]} {[%emt 00:00:04]} 44. Rxc5 {[%clk 00:00:12]}
{[%emt 00:00:01]} d3 {[%clk 00:00:04]} {[%emt 00:00:02]} 45. Kf3 {[%clk
00:00:14]} d2+ {[%clk 00:00:03]} {[%emt 00:00:03]} 46. Ke2 {[%emt 00:00:01]}
Ra2 47. Rc7+ {[%clk 00:00:07]} {[%emt 00:00:09]} Ke6 {[%clk 00:00:07]} 48. c5
{[%clk 00:00:07]} {[%emt 00:00:03]} a6 {[%clk 00:00:06]} {[%emt 00:00:03]} 49.
h4 {[%clk 00:00:05]} {[%emt 00:00:03]} h5 {[%clk 00:00:07]} {[%emt 00:00:01]}
50. f4 {[%clk 00:00:06]} f6 {[%emt 00:00:03]} 51. Rc6+ Kf5 {[%clk 00:00:09]} 52.
Rd6 {[%clk 00:00:08]} d1=Q+ {[%clk 00:00:09]} {[%emt 00:00:03]} 53. Kxd1 {[%clk
00:00:09]} Ra4 {[%clk 00:00:10]} 54. Rd4 {[%clk 00:00:09]} {[%emt 00:00:02]} a5
{[%clk 00:00:11]} {[%emt 00:00:01]} 55. c6 {[%clk 00:00:10]} {[%emt 00:00:01]}
axb4 {[%clk 00:00:12]} 56. Kc2 {[%clk 00:00:10]} {[%emt 00:00:02]} b3+ {[%clk
00:00:13]} 57. Kxb3 {[%emt 00:00:03]} Rxd4 {[%clk 00:00:14]} 58. c7 {[%clk
00:00:12]} Rd3+ {[%clk 00:00:16]} 59. Kc2 {[%clk 00:00:07]} {[%emt 00:00:07]}
Rxg3 {[%clk 00:00:17]} {[%emt 00:00:01]} 60. c8=Q+ {[%clk 00:00:07]} {[%emt
00:00:02]} Kxf4 {[%clk 00:00:18]} 61. Kd2 {[%clk 00:00:08]} {[%emt 00:00:02]}
f5 {[%clk 00:00:17]} {[%emt 00:00:03]} 62. Ke2 {[%clk 00:00:08]} {[%emt
00:00:01]} Kg4 {[%clk 00:00:17]} {[%emt 00:00:02]} 63. Qd8 {[%clk 00:00:09]}
{[%emt 00:00:01]} Kh3 {[%clk 00:00:17]} {[%emt 00:00:01]} 64. Kf2 {[%clk
00:00:10]} {[%emt 00:00:02]} Rg4 {[%clk 00:00:18]} {[%emt 00:00:01]} 65. Qf6
{[%clk 00:00:06]} {[%emt 00:00:06]} Rg2+ {[%clk 00:00:19]} {[%emt 00:00:01]} 66.
Kf3 {[%clk 00:00:06]} {[%emt 00:00:01]} Rg3+ {[%clk 00:00:20]} {[%emt
00:00:01]} 67. Kf4 {[%clk 00:00:07]} {[%emt 00:00:01]} Rg4+ {[%clk 00:00:22]}
68. Ke5 {[%clk 00:00:08]} Rg2 {[%clk 00:00:17]} {[%emt 00:00:06]} 69. Qc6
{[%clk 00:00:07]} {[%emt 00:00:03]} Rg4 {[%clk 00:00:18]} {[%emt 00:00:01]} 70.
Qh1+ {[%clk 00:00:05]} {[%emt 00:00:03]} Kg3 {[%clk 00:00:18]} {[%emt
00:00:02]} 71. Kf6 {[%clk 00:00:05]} {[%emt 00:00:02]} Kf2 {[%clk 00:00:17]}
{[%emt 00:00:03]} 72. Qh2+ {[%clk 00:00:06]} {[%emt 00:00:01]} Kf3 {[%clk
00:00:18]} {[%emt 00:00:01]} 73. Ke5 {[%clk 00:00:07]} Ke3 {[%clk 00:00:19]}
{[%emt 00:00:01]} 74. Qh3+ {[%clk 00:00:08]} {[%emt 00:00:02]} Kf2 {[%clk
00:00:19]} 75. Qh2+ {[%clk 00:00:08]} {[%emt 00:00:02]} Kf3 {[%clk 00:00:21]}
76. Kf6 {[%clk 00:00:05]} {[%emt 00:00:05]} Ke3 {[%clk 00:00:22]} {[%emt
00:00:01]} 77. Qh3+ {[%clk 00:00:05]} {[%emt 00:00:02]} Kf2 {[%clk 00:00:23]}
{[%emt 00:00:01]} 78. Qh2+ {[%clk 00:00:06]} Kf3 {[%clk 00:00:24]} 1/2-1/2

[ePGN "0.1;DGT LiveChess/2.2.3"]

[Event "new tournament description"]
[Site ""]
[Date "2018.12.27"]
[Round "7.1"]
[White "GOZZOLI"]
[Black "SCHMITT"]
[Result "1-0"]
[TimeControl "4min+2sec"]
[WhiteElo "2565"]
[BlackElo "2241"]

1. d4 {[%clk 00:04:02]} {[%emt 00:00:02]} Nf6 {[%clk 00:04:03]} {[%emt
00:00:01]} 2. Nf3 {[%clk 00:04:02]} {[%emt 00:00:01]} b6 {[%clk 00:04:05]} 3.
Bg5 {[%clk 00:04:03]} {[%emt 00:00:02]} Bb7 {[%clk 00:04:04]} {[%emt 00:00:03]}
4. Nbd2 {[%clk 00:04:03]} {[%emt 00:00:02]} e6 {[%clk 00:04:00]} {[%emt
00:00:06]} 5. e3 {[%clk 00:03:50]} {[%emt 00:00:15]} Be7 {[%clk 00:03:54]}
{[%emt 00:00:07]} 6. Bd3 {[%clk 00:03:51]} {[%emt 00:00:01]} d6 {[%clk
00:03:46]} {[%emt 00:00:10]} 7. a4 {[%clk 00:03:45]} {[%emt 00:00:08]} a6
{[%clk 00:03:44]} {[%emt 00:00:05]} 8. O-O {[%clk 00:03:40]} {[%emt 00:00:07]}
O-O {[%clk 00:03:42]} {[%emt 00:00:03]} 9. Re1 {[%clk 00:03:40]} {[%emt
00:00:02]} Nbd7 {[%clk 00:03:35]} {[%emt 00:00:09]} 10. c3 {[%clk 00:03:40]}
{[%emt 00:00:02]} Re8 {[%clk 00:03:30]} {[%emt 00:00:07]} 11. h3 {[%clk
00:03:40]} {[%emt 00:00:02]} e5 {[%clk 00:03:26]} {[%emt 00:00:07]} 12. e4
{[%clk 00:03:30]} {[%emt 00:00:11]} Nh5 {[%clk 00:02:50]} {[%emt 00:00:38]} 13.
Be3 {[%clk 00:03:18]} {[%emt 00:00:14]} g6 {[%clk 00:02:43]} {[%emt 00:00:09]}
14. Nh2 {[%clk 00:02:36]} {[%emt 00:00:44]} Bf8 {[%clk 00:02:37]} {[%emt
00:00:07]} 15. Ng4 {[%clk 00:02:31]} {[%emt 00:00:07]} Bg7 {[%clk 00:02:34]}
{[%emt 00:00:06]} 16. Nf3 {[%clk 00:02:08]} {[%emt 00:00:25]} Nf4 {[%clk
00:02:19]} {[%emt 00:00:16]} 17. Bxf4 {[%clk 00:02:07]} {[%emt 00:00:03]} exf4
{[%clk 00:02:19]} {[%emt 00:00:02]} 18. Ngh2 {[%clk 00:01:39]} {[%emt
00:00:30]} Nf6 {[%clk 00:02:11]} {[%emt 00:00:10]} 19. Nd2 {[%clk 00:01:23]}
{[%emt 00:00:18]} Qd7 {[%clk 00:01:55]} {[%emt 00:00:19]} 20. Nhf3 {[%clk
00:01:18]} {[%emt 00:00:06]} h6 {[%clk 00:01:49]} {[%emt 00:00:08]} 21. Qb3
{[%clk 00:01:13]} {[%emt 00:00:08]} g5 {[%clk 00:01:41]} {[%emt 00:00:10]} 22.
e5 {[%clk 00:01:10]} {[%emt 00:00:05]} dxe5 {[%clk 00:01:14]} {[%emt 00:00:28]}
23. Nxe5 {[%clk 00:01:11]} {[%emt 00:00:01]} Qd5 {[%clk 00:01:15]} 24. Qxd5
{[%clk 00:01:04]} {[%emt 00:00:09]} Bxd5 {[%clk 00:01:11]} {[%emt 00:00:05]} 25.
Ndf3 {[%clk 00:00:55]} {[%emt 00:00:12]} a5 {[%clk 00:00:45]} {[%emt 00:00:28]}
26. Bb5 {[%clk 00:00:54]} {[%emt 00:00:03]} Re6 {[%clk 00:00:36]} {[%emt
00:00:11]} 27. Nd2 {[%clk 00:00:39]} {[%emt 00:00:16]} Ne8 {[%clk 00:00:14]}
{[%emt 00:00:24]} 28. Bd7 {[%clk 00:00:36]} {[%emt 00:00:05]} Re7 {[%emt
00:00:03]} 29. Bf5 {[%clk 00:00:32]} {[%emt 00:00:05]} Rd8 {[%clk 00:00:09]}
{[%emt 00:00:07]} 30. Nd3 {[%clk 00:00:24]} {[%emt 00:00:10]} Rxe1+ {[%clk
00:00:07]} 31. Rxe1 {[%clk 00:00:26]} Kf8 {[%clk 00:00:07]} {[%emt 00:00:02]}
32. Be4 {[%clk 00:00:24]} {[%emt 00:00:03]} Rd7 {[%emt 00:00:10]} 1-0

[Event "new tournament description"]
[Site ""]
[Date "2018.12.27"]
[Round "7.2"]
[White "VATTER"]
[Black "GULIYEV"]
[Result "0-1"]
[TimeControl "4min+2sec"]
[WhiteElo "2265"]
[BlackElo "2550"]

1. e4 {[%clk 00:04:03]} {[%emt 00:01:57]} c5 {[%clk 00:04:00]} {[%emt
00:00:06]} 2. Nf3 {[%clk 00:04:03]} {[%emt 00:00:02]} d6 {[%clk 00:04:00]}
{[%emt 00:00:02]} 3. d4 {[%clk 00:04:03]} {[%emt 00:00:02]} cxd4 {[%clk
00:04:01]} {[%emt 00:00:02]} 4. Qxd4 {[%clk 00:04:04]} {[%emt 00:00:01]} a6
{[%clk 00:04:02]} {[%emt 00:00:01]} 5. Bg5 {[%clk 00:04:03]} {[%emt 00:00:02]}
Nc6 {[%clk 00:04:03]} {[%emt 00:00:02]} 6. Qd2 {[%clk 00:04:04]} {[%emt
00:00:01]} h6 {[%clk 00:04:03]} {[%emt 00:00:02]} 7. Bh4 {[%clk 00:04:05]} g5
{[%clk 00:03:55]} {[%emt 00:00:10]} 8. Bg3 {[%clk 00:04:05]} {[%emt 00:00:01]}
Bg7 {[%clk 00:03:56]} {[%emt 00:00:01]} 9. c3 {[%clk 00:04:06]} Nf6 {[%clk
00:03:57]} {[%emt 00:00:02]} 10. Bd3 {[%clk 00:04:07]} {[%emt 00:00:02]} Nh5
{[%clk 00:03:56]} {[%emt 00:00:03]} 11. Na3 {[%clk 00:04:07]} {[%emt 00:00:02]}
O-O {[%clk 00:03:52]} {[%emt 00:00:06]} 12. Nc2 {[%clk 00:04:07]} {[%emt
00:00:02]} b5 {[%clk 00:03:48]} {[%emt 00:00:06]} 13. h4 {[%clk 00:03:47]}
{[%emt 00:00:21]} Nxg3 {[%clk 00:03:48]} {[%emt 00:00:02]} 14. fxg3 {[%clk
00:03:47]} {[%emt 00:00:02]} g4 {[%clk 00:03:47]} {[%emt 00:00:04]} 15. Nfd4
{[%clk 00:03:46]} {[%emt 00:00:03]} Ne5 {[%clk 00:03:46]} {[%emt 00:00:03]} 16.
O-O {[%clk 00:03:41]} {[%emt 00:00:07]} e6 {[%clk 00:03:46]} {[%emt 00:00:02]}
17. a4 {[%clk 00:03:24]} {[%emt 00:00:19]} bxa4 {[%clk 00:03:40]} {[%emt
00:00:08]} 18. Rxa4 {[%clk 00:03:24]} {[%emt 00:00:02]} Bb7 {[%clk 00:03:41]}
{[%emt 00:00:02]} 19. Rfa1 {[%clk 00:03:20]} {[%emt 00:00:06]} d5 {[%clk
00:03:35]} {[%emt 00:00:08]} 20. exd5 {[%clk 00:03:16]} {[%emt 00:00:06]} Nxd3
{[%clk 00:03:18]} {[%emt 00:00:19]} 21. Qxd3 {[%clk 00:03:11]} {[%emt
00:00:07]} Qxd5 {[%clk 00:03:19]} {[%emt 00:00:02]} 22. Ne3 {[%clk 00:03:02]}
{[%emt 00:00:10]} Qd7 {[%clk 00:03:15]} {[%emt 00:00:06]} 23. Qe2 {[%clk
00:02:32]} {[%emt 00:00:31]} f5 {[%clk 00:03:12]} {[%emt 00:00:07]} 24. Qc4
{[%clk 00:02:19]} {[%emt 00:00:15]} Rae8 {[%clk 00:03:06]} {[%emt 00:00:08]} 25.
Ndxf5 {[%clk 00:01:23]} {[%emt 00:00:58]} Rxf5 {[%clk 00:03:06]} {[%emt
00:00:03]} 26. Nxf5 {[%clk 00:01:24]} {[%emt 00:00:01]} Bd5 {[%clk 00:03:06]}
{[%emt 00:00:02]} 27. Qd3 {[%clk 00:01:23]} {[%emt 00:00:02]} exf5 {[%clk
00:03:06]} {[%emt 00:00:03]} 28. Rxa6 {[%clk 00:01:15]} {[%emt 00:00:10]} Be6
{[%clk 00:01:48]} {[%emt 00:01:20]} 29. Rd6 {[%clk 00:01:09]} {[%emt 00:00:08]}
Qf7 {[%clk 00:01:46]} {[%emt 00:00:04]} 30. Re1 {[%clk 00:01:03]} {[%emt
00:00:08]} Bf8 {[%clk 00:01:46]} {[%emt 00:00:03]} 31. Rd8 {[%clk 00:00:50]}
{[%emt 00:00:14]} Bc4 {[%clk 00:01:42]} {[%emt 00:00:06]} 32. Qxc4 {[%clk
00:00:21]} {[%emt 00:00:32]} Rxe1+ {[%clk 00:01:41]} {[%emt 00:00:02]} 33. Qd3
{[%emt 00:00:24]} Re8 0-1

[ePGN "0.1;DGT LiveChess/2.2.3"]

[Event "new tournament description"]
[Site ""]
[Date "2018.12.27"]
[Round "8.1"]
[White "LERCH"]
[Black "GOZZOLI"]
[Result "0-1"]
[TimeControl "4min+2sec"]
[WhiteElo "2420"]
[BlackElo "2565"]

1. e4 {[%clk 00:04:02]} {[%emt 00:00:01]} e5 {[%clk 00:04:03]} {[%emt
00:00:01]} 2. Bc4 {[%clk 00:04:03]} {[%emt 00:00:01]} Nf6 {[%clk 00:04:03]}
{[%emt 00:00:02]} 3. d3 {[%clk 00:04:04]} {[%emt 00:00:01]} Nc6 {[%clk
00:04:01]} {[%emt 00:00:04]} 4. Nf3 {[%clk 00:04:05]} {[%emt 00:00:02]} Bc5
{[%clk 00:04:01]} {[%emt 00:00:02]} 5. O-O {[%clk 00:04:04]} {[%emt 00:00:03]}
O-O {[%clk 00:04:01]} {[%emt 00:00:02]} 6. Re1 {[%clk 00:04:00]} {[%emt
00:00:06]} h6 {[%clk 00:03:56]} {[%emt 00:00:06]} 7. c3 {[%clk 00:03:57]}
{[%emt 00:00:06]} d6 {[%clk 00:03:56]} {[%emt 00:00:02]} 8. a4 {[%clk
00:03:58]} {[%emt 00:00:02]} a6 {[%clk 00:03:51]} {[%emt 00:00:06]} 9. b4
{[%clk 00:03:57]} {[%emt 00:00:03]} Ba7 {[%clk 00:03:50]} {[%emt 00:00:03]} 10.
Ra2 {[%clk 00:03:42]} {[%emt 00:00:17]} Be6 {[%clk 00:03:41]} {[%emt 00:00:11]}
11. Na3 {[%clk 00:03:29]} {[%emt 00:00:15]} Re8 {[%clk 00:03:37]} {[%emt
00:00:06]} 12. Bxe6 {[%clk 00:03:25]} {[%emt 00:00:07]} Rxe6 {[%clk 00:03:24]}
{[%emt 00:00:14]} 13. Qb3 {[%clk 00:02:39]} {[%emt 00:00:48]} Qd7 {[%clk
00:03:04]} {[%emt 00:00:22]} 14. Nc4 {[%clk 00:02:21]} {[%emt 00:00:20]} Ne7
{[%clk 00:01:24]} {[%emt 00:01:42]} 15. b5 {[%clk 00:02:17]} {[%emt 00:00:07]}
c6 {[%clk 00:01:21]} {[%emt 00:00:05]} 16. bxa6 {[%clk 00:01:50]} {[%emt
00:00:30]} bxa6 {[%clk 00:01:21]} {[%emt 00:00:01]} 17. a5 {[%clk 00:01:27]}
{[%emt 00:00:25]} Rb8 {[%clk 00:01:15]} {[%emt 00:00:08]} 18. Nb6 {[%clk
00:01:10]} {[%emt 00:00:19]} Qc7 {[%clk 00:01:17]} 19. Be3 {[%clk 00:01:06]}
{[%emt 00:00:06]} c5 {[%clk 00:01:18]} {[%emt 00:00:01]} 20. Qc4 {[%clk
00:00:42]} {[%emt 00:00:26]} Bxb6 {[%clk 00:01:16]} {[%emt 00:00:04]} 21. axb6
{[%clk 00:00:43]} {[%emt 00:00:01]} Rxb6 {[%clk 00:01:17]} 22. Rxa6 {[%clk
00:00:40]} {[%emt 00:00:05]} Ng6 {[%clk 00:01:10]} {[%emt 00:00:09]} 23. Rxb6
{[%clk 00:00:35]} {[%emt 00:00:08]} Qxb6 {[%clk 00:01:11]} 24. h3 {[%clk
00:00:36]} Re7 {[%clk 00:01:07]} {[%emt 00:00:05]} 25. Ra1 {[%clk 00:00:36]}
{[%emt 00:00:02]} Ra7 {[%clk 00:01:08]} 26. Rxa7 {[%clk 00:00:31]} {[%emt
00:00:07]} Qxa7 {[%emt 00:00:01]} 27. Kh2 {[%clk 00:00:28]} {[%emt 00:00:04]}
Qb7 {[%clk 00:01:06]} {[%emt 00:00:06]} 28. Qa2 {[%clk 00:00:19]} {[%emt
00:00:11]} Nf8 {[%clk 00:01:04]} {[%emt 00:00:03]} 29. Nd2 {[%clk 00:00:20]}
{[%emt 00:00:01]} N8d7 {[%clk 00:00:59]} {[%emt 00:00:07]} 30. Nc4 {[%clk
00:00:19]} {[%emt 00:00:03]} d5 {[%clk 00:01:00]} {[%emt 00:00:01]} 31. Nd6
{[%clk 00:00:11]} {[%emt 00:00:06]} Qb8 {[%clk 00:00:54]} {[%emt 00:00:12]} 32.
Qa6 {[%clk 00:00:12]} {[%emt 00:00:02]} d4 {[%clk 00:00:49]} {[%emt 00:00:07]}
33. cxd4 {[%clk 00:00:13]} {[%emt 00:00:01]} cxd4 {[%clk 00:00:50]} 34. Bd2
{[%clk 00:00:12]} {[%emt 00:00:02]} Qb2 {[%clk 00:00:47]} {[%emt 00:00:05]} 35.
Nc4 {[%clk 00:00:13]} {[%emt 00:00:02]} Qc2 {[%clk 00:00:43]} {[%emt 00:00:06]}
36. Qa3 {[%clk 00:00:13]} {[%emt 00:00:03]} Qd1 {[%clk 00:00:36]} {[%emt
00:00:08]} 37. Qd6 {[%clk 00:00:10]} {[%emt 00:00:05]} Qe2 {[%clk 00:00:36]}
{[%emt 00:00:02]} 38. Qa3 {[%clk 00:00:06]} {[%emt 00:00:06]} Qxf2 {[%clk
00:00:35]} {[%emt 00:00:03]} 39. Bb4 {[%clk 00:00:05]} {[%emt 00:00:03]} Qh4
{[%emt 00:00:07]} 40. Qc1 {[%emt 00:00:04]} Ng4+ {[%clk 00:00:30]} {[%emt
00:00:11]} 41. Kg1 {[%clk 00:00:04]} {[%emt 00:00:03]} Qf2+ {[%clk 00:00:31]}
42. Kh1 {[%clk 00:00:06]} Ngf6 {[%clk 00:00:28]} {[%emt 00:00:06]} 43. Qd2
{[%clk 00:00:04]} {[%emt 00:00:04]} Qxd2 {[%clk 00:00:26]} {[%emt 00:00:03]} 44.
Nxd2 {[%clk 00:00:05]} Ne8 {[%clk 00:00:27]} 45. Nf3 {[%clk 00:00:06]} {[%emt
00:00:01]} f6 {[%clk 00:00:29]} 46. Nd2 {[%clk 00:00:08]} Kf7 {[%clk 00:00:30]}
{[%emt 00:00:02]} 47. Kg1 {[%clk 00:00:09]} Nc7 {[%clk 00:00:31]} 48. Kf2
{[%clk 00:00:10]} Na6 {[%clk 00:00:33]} {[%emt 00:00:01]} 49. Ba3 {[%clk
00:00:11]} Ndc5 {[%clk 00:00:34]} {[%emt 00:00:01]} 50. Ke2 {[%clk 00:00:12]}
{[%emt 00:00:02]} Na4 {[%clk 00:00:35]} 51. Nc4 {[%clk 00:00:13]} Nc3+ {[%clk
00:00:36]} 52. Ke1 {[%clk 00:00:13]} {[%emt 00:00:02]} Nc7 {[%clk 00:00:37]}
{[%emt 00:00:01]} 53. Bc5 {[%clk 00:00:14]} Ne6 {[%clk 00:00:38]} {[%emt
00:00:01]} 54. Bb4 {[%clk 00:00:12]} {[%emt 00:00:03]} Nf4 {[%clk 00:00:39]}
{[%emt 00:00:02]} 55. Kd2 {[%clk 00:00:07]} {[%emt 00:00:07]} Nb5 {[%clk
00:00:38]} {[%emt 00:00:03]} 56. g4 {[%emt 00:00:06]} Nxh3 {[%emt 00:00:02]}
0-1